[Event "44th Chess Olympiad Open 2022"]
[Site "Chennai"]
[Date "2022.07.29"]
[Round "1.1"]
[White "Vidit, Santosh Gujrathi"]
[Black "Makoto, Rodwell"]
[Result "1-0"]
[WhiteElo "2714"]
[BlackElo "2346"]
[Annotator "TA"]
[PlyCount "97"]
[EventDate "2022.??.??"]
[TimeControl "60"]

{[%evp 21,97,22,53,52,56,54,58,52,50,45,58,24,46,37,54,47,44,52,54,47,44,4,29,
31,58,41,52,52,98,98,99,97,160,120,113,129,115,115,129,110,101,109,120,97,100,
98,101,98,119,111,118,106,155,129,195,195,179,187,372,367,436,412,752,663,668,
648,870,817,1197,1179,1133,1106,1060,1017,987,920,961,897]} 1. Nf3 {[%emt 0:00:
00]} Nf6 {[%emt 0:02:15]} 2. c4 {[%emt 0:00:16]} g6 {[%emt 0:01:11]} 3. Nc3 {
[%emt 0:00:19]} Bg7 {[%emt 0:02:06]} 4. e4 {[%emt 0:00:18]} d6 {[%emt 0:00:45]}
5. d4 {[%emt 0:00:08]} O-O {[%emt 0:01:38]} 6. Be2 {[%emt 0:00:13]} e5 {
[%emt 0:01:44]} 7. O-O {[%emt 0:00:12]} Nc6 {[%emt 0:00:41]} 8. d5 {[%emt 0:00:
00]} Ne7 {[%emt 0:00:03]} 9. b4 {[%emt 0:00:12]} a5 {[%emt 0:03:30]} 10. bxa5 {
[%emt 0:00:25]} Rxa5 {[%emt 0:00:07]} 11. a4 {[%emt 0:00:11]} Nd7 {[%emt 0:00:
00] 11...Ne8 is the fancy move.} 12. Nd2 {[%emt 0:01:06] E97: King's Indian:
Classical Main Line (6...e5 7 0-0 Nc6): 8 Be3 and 8 d5 Ne7, not 9 Ne1.} Nc5 {
[%emt 0:07:03]} 13. Nb3 {[%emt 0:08:48]} Nxb3 {[%emt 0:08:40]} 14. Qxb3 {
[%emt 0:00:04] White is slightly better.} f5 {[%emt 0:00:14]} 15. f3 {[%emt 0:
00:00][%cal Yc4c5]} Kh8 {[%emt 0:06:49] [#]} 16. Ba3 $146 {[%emt 0:04:23]} ({
Predecessor:} 16. Bd2 Ng8 17. Nb5 Ra8 18. c5 dxc5 19. Bc3 Bd7 20. Qb2 Bxb5 21.
Bxb5 Qd6 22. exf5 gxf5 {1-0 (30) Kostelny,J-Nemec,A Slovakia 1998}) 16... c5 {
[%emt 0:13:54] Prevents Bb4.} 17. dxc6 {[%emt 0:04:10]} Nxc6 {[%emt 0:00:56]}
18. Bd3 {[%emt 0:04:25][%cal Ye2d3,Yd3c2,Yc2e4]} Bh6 {[%emt 0:03:50]} 19. Kh1 {
[%emt 0:01:46]} Be3 {[%emt 0:05:14]} 20. Nb5 {[%emt 0:01:21]} Bc5 {[%emt 0:07:
18]} 21. Rad1 {[%emt 0:02:16] Black should prevent exf5.} Nd4 {[%emt 0:04:31]}
22. Nxd4 {[%emt 0:00:33]} exd4 {[%emt 0:00:05]} 23. Bc2 {[%emt 0:10:26]} fxe4 {
[%emt 0:06:25]} 24. Bxe4 {[%emt 0:02:30]} Qe8 {[%emt 0:00:00]} (24... Bf5 $14)
25. Bb2 $16 {[%emt 0:05:28] [#] Strongly threatening Bd5. White is more active.
} Qxa4 {[%emt 0:08:32]} 26. Qd3 {[%emt 0:00:28]} ({Don't play} 26. Bxd4+ Bxd4
27. Qxa4 Rxa4 $11) 26... Qe8 {[%emt 0:03:25]} ({Black should play} 26... Be6)
27. Rfe1 {[%emt 0:08:16] Threatens to win with Qd2.} ({Resist} 27. Bxd4+ Bxd4
28. Qxd4+ Qe5 $16) 27... Qf7 {[%emt 0:01:50]} 28. Bxd4+ {[%emt 0:08:55]} Bxd4 {
[%emt 0:00:02]} 29. Qxd4+ {[%emt 0:00:07]} Qf6 {[%emt 0:00:09]} 30. Qxd6 {
[%emt 0:00:34]} Qxd6 {[%emt 0:00:07]} 31. Rxd6 {[%emt 0:00:02]} Rc5 {[%emt 0:
00:02]} 32. Bd3 {[%emt 0:00:23]} Kg7 {[%emt 0:00:00]} 33. Kg1 {[%emt 0:00:49]}
Rf6 {[%emt 0:01:08]} 34. Re7+ {[%emt 0:02:40]} Rf7 {[%emt 0:00:03]} 35. Rxf7+ {
[%emt 0:01:18]} Kxf7 {[%emt 0:00:01] Endgame KRB-KRB} 36. Rb6 {[%emt 0:00:10]}
Rc7 {[%emt 0:02:02] [#]} (36... Rc6 $142 37. Rb4 Rd6) 37. Kf2 $1 {[%emt 0:00:
35]} Bd7 {[%emt 0:00:46]} (37... Be6 $16 38. Rb4 Bd7) 38. Ke3 $18 {[%emt 0:03:
29]} Bc6 {[%emt 0:00:12]} 39. h4 {[%emt 0:00:18][%cal Yh2h4,Yh4h5]} Kf6 $2 {
[%emt 0:00:41]} (39... Rc8 40. Be4 Bxe4) 40. Be4 {[%emt 0:03:23]} g5 {[%emt 0:
00:34]} 41. h5 {[%emt 0:00:00]} Ke5 {[%emt 0:10:23]} (41... g4 $142 42. fxg4
Kg5) 42. Bxc6 {[%emt 0:02:08] White is clearly winning.} bxc6 {[%emt 0:00:02]
KR-KR} 43. Ra6 {[%emt 0:00:09]} c5 {[%emt 0:07:56]} 44. Ra5 {[%emt 0:06:33]}
Kf5 {[%emt 0:06:21]} 45. g4+ {[%emt 0:02:36]} Ke5 {[%emt 0:00:15]} 46. Ra8 {
[%emt 0:01:49]} Re7 {[%emt 0:00:00]} 47. Rd8 {[%emt 0:02:39]} Kf6+ {[%emt 0:01:
14]} 48. Kd3 {[%emt 0:01:00]} Re1 {[%emt 0:02:50]} 49. Rf8+ {[%emt 0:00:34]
Weighted Error Value: White=0.05 (flawless) /Black=0.22 (precise)} 1-0

[Event "44th Chess Olympiad Open 2022"]
[Site "Chennai"]
[Date "2022.07.29"]
[Round "1.1"]
[White "Narayanan.S.L"]
[Black "Mushore, Emarald Takudzwa"]
[Result "1-0"]
[WhiteElo "2659"]
[BlackElo "2153"]
[Annotator "TA"]
[PlyCount "65"]
[EventDate "2022.??.??"]
[TimeControl "60"]

{[%evp 9,65,63,67,73,72,72,80,74,76,69,75,62,66,61,72,72,72,56,91,91,91,91,91,
91,91,93,95,89,85,88,92,99,109,98,116,96,99,98,102,111,91,77,116,114,117,116,
117,113,110,113,187,194,202,177,221,205,224,206]} 1. c4 {[%emt 0:00:03]} Nf6 {
[%emt 0:00:47]} 2. Nc3 {[%emt 0:00:08]} e6 {[%emt 0:01:34]} 3. e4 {[%emt 0:00:
00]} d6 {[%emt 0:01:42]} 4. d4 {[%emt 0:00:15]} Nbd7 {[%emt 0:01:22]} 5. Nf3 {
[%emt 0:01:23]} e5 {[%emt 0:01:44]} 6. Be2 {[%emt 0:00:50] A18: English
Opening: Flohr-Mikenas System (1 c4 Nf6 2 Nc3 e6 3 e4).} c6 {[%emt 0:01:33]} 7.
O-O {[%emt 0:01:14]} Be7 {[%emt 0:00:44]} 8. Qc2 {[%emt 0:05:07] White is
better.} O-O {[%emt 0:04:45]} 9. Rd1 {[%emt 0:04:16]} Qc7 {[%emt 0:02:22]} 10.
h3 {[%emt 0:00:54]} Re8 {[%emt 0:00:42]} 11. Be3 {[%emt 0:01:24]} Bf8 {[%emt 0:
00:00]} 12. d5 {[%emt 0:00:56] [#]} a5 $146 {[%emt 0:06:29]} ({Predecessor:} 
12... Nb6 13. Rac1 Bd7 14. Nd2 Rac8 15. b4 cxd5 16. cxd5 Na4 17. Ndb1 b5 18.
Qd2 Nxc3 19. Nxc3 {1-0 (60) Kollars,D (2564)-Zhang,D (1966) Chess.com INT 2019}
) 13. a3 {[%emt 0:00:42][%cal Ya2a3,Ya3b4] 0x0.0019891f3abbdp-1022s more
active pieces. The black rooks are badly placed.} Nc5 {[%emt 0:21:22]} 14. b4 {
[%emt 0:15:42]} axb4 {[%emt 0:00:55]} 15. axb4 {[%emt 0:00:07] [#] Discovered
Attack} Rxa1 {[%emt 0:00:27]} 16. Rxa1 {[%emt 0:00:06]} Na6 {[%emt 0:02:05]}
17. Qb2 {[%emt 0:08:11]} c5 {[%emt 0:21:32]} 18. bxc5 {[%emt 0:00:00]} Nxc5 {
[%emt 0:02:53]} 19. Nd2 {[%emt 0:03:34]} Bd7 {[%emt 0:05:15]} 20. Bxc5 {
[%emt 0:19:52]} dxc5 {[%emt 0:00:19]} 21. Bd1 {[%emt 0:00:47]} Rb8 {[%emt 0:04:
10]} 22. Ba4 {[%emt 0:01:44]} Ra8 {[%emt 0:02:09]} 23. Bxd7 {[%emt 0:01:07]}
Rxa1+ {[%emt 0:00:03]} 24. Qxa1 {[%emt 0:00:07] Threatens to win with Bb5.}
Nxd7 {[%emt 0:00:13]} 25. Qa8 {[%emt 0:02:30]} Qb8 {[%emt 0:00:00]} 26. Qa4 {
[%emt 0:00:42]} Qd8 {[%emt 0:00:59]} 27. Qb5 {[%emt 0:01:43]} Qc7 {[%emt 0:01:
18]} 28. Nb3 {[%emt 0:01:01]} g6 {[%emt 0:03:15]} 29. Na5 {[%emt 0:00:00]} b6 {
[%emt 0:01:18]} (29... Nb6 $16 {keeps fighting.} 30. g3 Kg7) 30. Nc6 $18 {
[%emt 0:00:37] White is clearly better.} Qb7 {[%emt 0:03:36] [#]} 31. Qa4 $1 {
[%emt 0:00:52] Prevents Qa8.} Kg7 {[%emt 0:01:14]} 32. Nb5 {[%emt 0:00:00]} Kg8
{[%emt 0:01:49]} 33. Qa1 {[%emt 0:01:09] Weighted Error Value: White=0.03 
(flawless) /Black=0.09 (flawless)} 1-0

[Event "44th Chess Olympiad Open 2022"]
[Site "Chennai"]
[Date "2022.07.29"]
[Round "1.1"]
[White "Masango, Spencer"]
[Black "Erigaisi Arjun"]
[Result "0-1"]
[WhiteElo "2170"]
[BlackElo "2689"]
[Annotator "TA"]
[PlyCount "75"]
[EventDate "2022.??.??"]
[TimeControl "60"]

{[%evp 12,75,1,5,10,0,0,0,0,0,0,-43,-52,-50,-44,-52,-75,-55,-36,-38,-38,-36,
-26,-38,-18,-17,-13,-50,-29,-25,-13,-11,-15,-31,-39,-44,-26,-76,-38,-42,-42,
-104,-106,-116,-110,-110,-50,-75,-63,-68,-31,-76,-15,-73,-69,-75,-34,-218,-162,
-230,-197,-210,-213,-209,-184,-206]} 1. Nf3 {[%emt 0:01:35]} d5 {[%emt 0:00:43]
} 2. d4 {[%emt 0:00:50]} Nf6 {[%emt 0:00:22]} 3. c4 {[%emt 0:00:31]} e6 {
[%emt 0:00:08]} 4. g3 {[%emt 0:00:13]} Bb4+ {[%emt 0:02:21]} 5. Bd2 {[%emt 0:
00:00]} a5 {[%emt 0:00:19]} 6. Bg2 {[%emt 0:00:55]} O-O {[%emt 0:00:10]} 7. O-O
{[%emt 0:00:15] 7.Qc2 is the fancy move.} dxc4 {[%emt 0:00:37] E11:
Bogo-Indian.} 8. Qc2 {[%emt 0:23:22]} Bxd2 {[%emt 0:00:16]} 9. Nbxd2 {[%emt 0:
00:00]} b5 $1 {[%emt 0:00:23] The position is equal.} 10. a4 {[%emt 0:01:24]}
c6 {[%emt 0:00:07]} 11. e4 {[%emt 0:15:37]} Na6 {[%emt 0:10:04]} 12. b3 {
[%emt 0:20:48]} Nb4 {[%emt 0:00:27]} 13. Qc3 {[%emt 0:00:45]} cxb3 {[%emt 0:00:
00]} 14. Qxb3 {[%emt 0:00:53]} Ba6 {[%emt 0:04:10] Strongly threatening ...
bxa4.} 15. Rfc1 {[%emt 0:02:12]} bxa4 {[%emt 0:03:01]} 16. Rxa4 {[%emt 0:00:58]
} Bb5 {[%emt 0:00:35] [#]} 17. Raa1 $146 {[%emt 0:06:43]} ({Predecessor:} 17.
Ra3 e5 18. dxe5 Nd3 19. Rc3 Nxe5 20. Nxe5 Qxd2 21. Nf3 Qd7 22. Ne5 Qd4 23. Nxc6
Bxc6 24. Rxc6 {½-½ (46) Nepomniachtchi,I (2784)-Carlsen,M (2863) chess24.com
INT 2020}) 17... Qe7 {[%emt 0:07:52]} 18. Ne5 {[%emt 0:03:24]} Rfd8 {[%emt 0:
00:00]} 19. Qe3 {[%emt 0:01:55]} Qd6 {[%emt 0:17:55][%cal Yb4d3]} 20. Ndf3 {
[%emt 0:04:03][%cal Ye5f7]} Nd7 {[%emt 0:01:06][%cal Yf6d7,Yd7b8,Yb8a6] Hoping
for ...Nxe5.} 21. Nc4 {[%emt 0:04:12]} Qc7 {[%emt 0:00:57]} 22. Qc3 {[%emt 0:
01:44][%cal Yc4a5]} Bxc4 {[%emt 0:03:17]} 23. Qxc4 {[%emt 0:00:07]} Qb6 {
[%emt 0:03:06]} 24. Ne1 {[%emt 0:05:12]} (24. Ra3 $11 {remains equal.}) 24...
Nb8 {[%emt 0:05:03]} 25. Rd1 {[%emt 0:00:36]} N8a6 {[%emt 0:00:25]} 26. d5 {
[%emt 0:01:59]} (26. Nf3 $15) 26... cxd5 $17 {[%emt 0:01:43]} 27. exd5 {
[%emt 0:00:23]} Rac8 {[%emt 0:02:26]} 28. Qg4 {[%emt 0:00:23]} f5 {[%emt 0:00:
00]} ({Black should play} 28... Nxd5 $17 {White must now prevent ...Nab4.} 29.
Bxd5 exd5 30. Rxd5 Nc5) 29. Qg5 {[%emt 0:00:59]} Nxd5 {[%emt 0:01:59]} (29...
h6 $5 {[%cal Rh6g5]} 30. Qg6 Rd6 $17) 30. Bxd5 {[%emt 0:00:31]} exd5 {[%emt 0:
00:00]} 31. Nd3 {[%emt 0:00:38]} Rf8 {[%emt 0:01:23]} ({Better is} 31... Nc5
$17 32. Qxf5 Ne4) 32. Nf4 {[%emt 0:00:45]} (32. Qe7 $11) 32... Rc2 {[%emt 0:00:
00]} 33. Rf1 {[%emt 0:00:25]} Nb4 {[%emt 0:00:13]} 34. Nh5 $2 {[%emt 0:00:33] 
[#] White does not recover from this.} (34. Qe7 $15 Ra8 35. Qd7 (35. Ne6 Qa7
$17)) 34... Rc7 {[%emt 0:04:33] Black is clearly better.} 35. Rac1 {[%emt 0:00:
00]} (35. Nf4 {might work better.}) 35... h6 {[%emt 0:00:30]} 36. Qf4 {[%emt 0:
00:00]} Rxc1 {[%emt 0:00:29]} 37. Qxc1 {[%emt 0:00:35]} Kh7 {[%emt 0:03:49]}
38. Qb2 {[%emt 0:00:00] Weighted Error Value: White=0.30/Black=0.15 (very
precise)} 0-1

[Event "44th Chess Olympiad Open 2022"]
[Site "Chennai"]
[Date "2022.07.29"]
[Round "1.1"]
[White "Zhemba, Jemusse"]
[Black "Sasikiran, Krishnan"]
[Result "0-1"]
[WhiteElo "2162"]
[BlackElo "2638"]
[Annotator "ChessBase"]
[PlyCount "78"]
[EventDate "2022.??.??"]
[TimeControl "60"]

1. e4 {[%emt 0:00:13]} c5 {[%emt 0:00:13]} 2. Nf3 {[%emt 0:00:35]} d6 {[%emt 0:
00:00]} 3. d4 {[%emt 0:00:21]} cxd4 {[%emt 0:00:17]} 4. Nxd4 {[%emt 0:00:08]}
Nf6 {[%emt 0:00:13]} 5. Nc3 {[%emt 0:02:24]} Nc6 {[%emt 0:00:19]} 6. Bg5 {
[%emt 0:01:58]} e6 {[%emt 0:00:19]} 7. Qd2 {[%emt 0:01:20]} a6 {[%emt 0:00:55]}
8. O-O-O {[%emt 0:01:06]} Be7 {[%emt 0:01:12]} 9. Nb3 {[%emt 0:01:31]} b5 {
[%emt 0:14:44]} 10. Qe1 {[%emt 0:05:51]} b4 {[%emt 0:06:23]} 11. Nb1 {[%emt 0:
00:00]} O-O {[%emt 0:12:06]} 12. f3 {[%emt 0:04:40]} a5 {[%emt 0:05:36]} 13.
Nd4 {[%emt 0:06:12]} Nxd4 {[%emt 0:07:21]} 14. Rxd4 {[%emt 0:00:48]} e5 {
[%emt 0:00:48]} 15. Rd2 {[%emt 0:01:34]} Qc7 {[%emt 0:06:55]} 16. c4 {[%emt 0:
00:00]} Nxe4 {[%emt 0:10:43]} 17. Qxe4 {[%emt 0:06:56]} Bxg5 {[%emt 0:00:15]}
18. Qxa8 {[%emt 0:06:10]} Bf5 {[%emt 0:04:08]} 19. Qd5 {[%emt 0:01:50]} Be6 {
[%emt 0:03:54]} 20. Qd3 {[%emt 0:02:02]} d5 {[%emt 0:01:49]} 21. Kd1 {[%emt 0:
00:00]} Bxd2 {[%emt 0:05:32]} 22. Nxd2 {[%emt 0:01:50]} dxc4 {[%emt 0:00:54]}
23. Qc2 {[%emt 0:00:56]} Rc8 {[%emt 0:04:36]} 24. g4 {[%emt 0:05:38]} h6 {
[%emt 0:06:34]} 25. Ke1 {[%emt 0:03:36]} c3 {[%emt 0:01:44]} 26. Ne4 {[%emt 0:
00:00]} cxb2 {[%emt 0:01:40]} 27. Qxb2 {[%emt 0:00:21]} Qb6 {[%emt 0:00:43]}
28. Be2 {[%emt 0:01:57]} Qe3 {[%emt 0:01:57]} 29. Nf2 {[%emt 0:01:29]} Rc1+ {
[%emt 0:01:18]} 30. Nd1 {[%emt 0:00:16]} b3 {[%emt 0:00:25]} 31. a3 {[%emt 0:
00:00]} Qf4 {[%emt 0:00:44]} 32. Qd2 {[%emt 0:01:46]} Qxd2+ {[%emt 0:00:32]}
33. Kxd2 {[%emt 0:00:01]} b2 {[%emt 0:00:05]} 34. Bd3 {[%emt 0:00:05]} b1=Q {
[%emt 0:00:25]} 35. Bxb1 {[%emt 0:00:03]} Rxb1 {[%emt 0:00:04]} 36. Re1 {
[%emt 0:01:02]} f6 {[%emt 0:00:38]} 37. Kc2 {[%emt 0:01:28]} Ra1 {[%emt 0:00:
00]} 38. Re3 {[%emt 0:00:16]} a4 {[%emt 0:00:18]} 39. Nb2 {[%emt 0:00:38]} Bb3+
{[%emt 0:00:24]} 0-1

[Event "44th Chess Olympiad Open 2022"]
[Site "Chennai"]
[Date "2022.07.29"]
[Round "1.2"]
[White "So, Wesley"]
[Black "Miguel, Sergio"]
[Result "1-0"]
[WhiteElo "2773"]
[BlackElo "2274"]
[Annotator "TA"]
[PlyCount "83"]
[EventDate "2022.??.??"]
[TimeControl "60"]

{[%evp 17,83,12,22,31,33,31,33,31,29,40,38,46,59,64,70,69,66,61,112,101,155,
162,172,177,154,166,172,160,230,222,247,241,242,237,223,228,359,348,368,382,
404,382,358,354,339,420,375,424,397,424,423,407,420,434,424,417,402,375,651,
664,643,647,989,953,1764,1579,12835,12834]} 1. d4 {[%emt 1:58:11]} Nf6 {
[%emt 0:00:13]} 2. c4 {[%emt 0:00:06]} e6 {[%emt 0:00:13]} 3. Nc3 {[%emt 0:00:
00]} Bb4 {[%emt 0:00:15]} 4. e3 {[%emt 0:00:08]} O-O {[%emt 0:01:51]} 5. Bd3 {
[%emt 0:00:06]} d5 {[%emt 0:00:55]} 6. cxd5 {[%emt 0:00:35]} exd5 {[%emt 0:00:
00]} 7. a3 {[%emt 0:00:10]} Bxc3+ {[%emt 0:05:04]} 8. bxc3 {[%emt 0:00:04]} b6
{[%emt 0:00:17]} 9. Ne2 {[%emt 0:00:56]} Ba6 {[%emt 0:04:47]} 10. O-O {[%emt 0:
00:00] E49: Nimzo-Indian: Rubinstein: 5 Bd3 d5 6 a3 Bxc3+ 7 bxc3.} Bxd3 {
[%emt 0:06:26]} 11. Qxd3 {[%emt 0:00:06]} Qc8 {[%emt 0:01:43] is the legacy
move (11...c5).} 12. f3 {[%emt 0:17:31] White is slightly better.} Qa6 {
[%emt 0:01:03]} 13. Qxa6 {[%emt 0:02:49]} Nxa6 {[%emt 0:00:12] [#]} 14. g4 $146
{[%emt 0:00:30]} ({Predecessor:} 14. Ng3 Rfe8 15. Re1 c6 16. e4 g6 17. Bg5 Nd7
18. Bf4 Rac8 19. Rac1 Nc7 20. Bxc7 Rxc7 {½-½ (28) Hochstrasser,M (2371)
-Atlas,V (2453) Switzerland 2007}) 14... c5 {[%emt 0:05:19]} 15. a4 {[%emt 0:
00:00]} Rfe8 {[%emt 0:06:32]} 16. Rd1 {[%emt 0:08:01]} cxd4 {[%emt 0:05:18]}
17. cxd4 {[%emt 0:01:43]} Nb4 {[%emt 0:01:42] White now steadily converts the
win.} ({Black should try} 17... Rac8 $14) 18. Rb1 $16 {[%emt 0:03:32]} a5 {
[%emt 0:03:25]} (18... Nc6 $142) 19. Bd2 {[%emt 0:00:30]} Rac8 {[%emt 0:05:10]}
20. Rdc1 {[%emt 0:06:33]} Rxc1+ {[%emt 0:05:04]} 21. Rxc1 {[%emt 0:00:17]} h6 {
[%emt 0:01:24]} 22. h4 {[%emt 0:01:31]} g6 {[%emt 0:04:30] [#]} (22... Kf8 $16
23. Rb1 Nc2) 23. Rb1 $1 $18 {[%emt 0:02:54]} Nc2 {[%emt 0:05:47]} 24. Kf2 {
[%emt 0:04:15]} ({Resist} 24. Rxb6 Nxe3 25. Bxe3 (25. Rxf6 Nc4 $16) 25... Rxe3)
24... Re6 {[%emt 0:07:20] [#]} 25. Nf4 $1 {[%emt 0:02:47]} Rd6 {[%emt 0:01:12]}
26. Rc1 {[%emt 0:01:45]} Na3 {[%emt 0:01:01]} (26... Nb4 $142 27. Bxb4 axb4)
27. Rc8+ {[%emt 0:00:37]} Kg7 {[%emt 0:02:01]} 28. Bc1 {[%emt 0:00:04]} Nb1 {
[%emt 0:06:32]} 29. Ke2 {[%emt 0:06:05]} g5 {[%emt 0:08:43]} 30. hxg5 {[%emt 0:
00:00]} hxg5 {[%emt 0:00:02]} 31. Nd3 {[%emt 0:00:06]} b5 {[%emt 0:02:03]} 32.
axb5 {[%emt 0:00:23]} Rb6 {[%emt 0:00:21]} 33. Ne5 {[%emt 0:03:32]} ({Less
strong is} 33. Rc5 Rxb5 34. Ke1 Rb3 $16) 33... Rxb5 {[%emt 0:07:28]} 34. Rc7 {
[%emt 0:00:07] Against Rb7} Ne8 {[%emt 0:00:23]} 35. Rxf7+ {[%emt 0:00:08]} Kg8
{[%emt 0:00:35]} 36. Ra7 {[%emt 0:01:36] And now Ra8 would win.} Nd6 {[%emt 0:
00:00]} 37. Kd1 {[%emt 0:10:38]} Nc4 $2 {[%emt 0:01:38]} (37... Nc3+ 38. Kc2
Na2) 38. Nxc4 {[%emt 0:00:19] White is clearly winning.} dxc4 {[%emt 0:00:06]}
39. Kc2 {[%emt 0:00:04] Inhibits Nc3.} c3 {[%emt 0:01:07]} 40. d5 {[%emt 0:00:
00][%cal Yd4d5,Yd5d6,Yd6d7] Strongly threatening d6.} Nd2 {[%emt 0:00:00]} 41.
d6 {[%emt 0:00:46]} Rd5 {[%emt 0:00:35]} 42. d7 {[%emt 0:00:16] Weighted Error
Value: White=0.01 (flawless) /Black=0.25 (precise)} 1-0

[Event "44th Chess Olympiad Open 2022"]
[Site "Chennai"]
[Date "2022.07.29"]
[Round "1.2"]
[White "Shankland, Sam"]
[Black "Junior, Domingos"]
[Result "1-0"]
[WhiteElo "2720"]
[BlackElo "2107"]
[Annotator "TA"]
[PlyCount "105"]
[EventDate "2022.??.??"]
[TimeControl "60"]

{[%evp 19,105,20,14,8,20,13,20,15,35,34,40,28,37,27,31,35,54,53,44,41,57,51,69,
58,118,115,125,123,117,116,116,122,125,82,90,93,90,52,87,54,78,79,87,84,90,87,
89,86,100,89,120,119,117,87,181,191,178,177,226,130,130,103,109,103,103,59,146,
49,128,131,776,765,899,909,893,785,874,851,1209,1032,1675,1665,1647,1677,1695,
1642,1261,1151]} 1. d4 {[%emt 0:00:13]} Nf6 {[%emt 0:03:04]} 2. c4 {[%emt 0:00:
00]} e6 {[%emt 0:00:11]} 3. Nf3 {[%emt 0:00:26]} b6 {[%emt 0:00:05]} 4. g3 {
[%emt 0:00:55]} Bb7 {[%emt 0:02:35]} 5. Bg2 {[%emt 0:00:40]} Be7 {[%emt 0:00:
00]} 6. O-O {[%emt 0:00:09]} O-O {[%emt 0:00:17]} 7. Re1 {[%emt 0:00:42]} d5 {
[%emt 0:01:25]} 8. cxd5 {[%emt 0:00:09]} exd5 {[%emt 0:01:37]} 9. Nc3 {[%emt 0:
00:00]} Nbd7 {[%emt 0:04:29][%cal Yb8d7,Yd7c5,Yc5e4]} 10. Bf4 {[%emt 0:03:29]}
Ne4 {[%emt 0:11:46]} 11. Rc1 {[%emt 0:06:40][%cal Yf4c7] Black should prevent
Bxc7! E17: Queen's Indian: 4 g3 Bb7 5 Bg2 Be7.} c5 {[%emt 0:00:00]} 12. dxc5 {
[%emt 0:07:27]} Ndxc5 {[%emt 0:02:36]} 13. Be5 {[%emt 0:03:24] The position is
equal.} Nxc3 {[%emt 0:08:49]} 14. Bxc3 {[%emt 0:02:50]} Ne4 {[%emt 0:02:08]}
15. Bd4 {[%emt 0:00:56]} Bb4 {[%emt 0:04:46]} 16. Rf1 {[%emt 0:00:00][%cal
Yd4g7]} Qe7 {[%emt 0:00:59]} 17. Qa4 {[%emt 0:04:10]} Bc5 {[%emt 0:00:00]} 18.
e3 {[%emt 0:04:42]} Rfd8 {[%emt 0:05:37]} 19. Rfd1 {[%emt 0:01:47] [#]} a6 $146
{[%emt 0:06:50]} ({Predecessor:} 19... a5 20. Ne5 Rac8 21. Bxe4 dxe4 22. Bxc5
Rxd1+ 23. Rxd1 bxc5 24. Qxa5 h5 25. Qc3 Rd8 26. Rxd8+ Qxd8 {1-0 (42) Vukic,M 
(2485)-Janosevic,D (2400) Donji Milanovac 1979}) 20. Ne1 {[%emt 0:13:13][%cal
Yf3e1,Ye1d3,Yd3b4]} Rac8 {[%emt 0:05:29]} 21. Nd3 {[%emt 0:01:00]} b5 {[%emt 0:
04:55]} (21... h6 $14) 22. Bxc5 $16 {[%emt 0:00:00]} Rxc5 {[%emt 0:00:06]} 23.
Qa3 {[%emt 0:01:18]} Rc7 {[%emt 0:03:16]} 24. Qxe7 {[%emt 0:01:06]} Rxe7 {
[%emt 0:00:02]} 25. Nb4 {[%emt 0:00:22][%cal Yb4d5]} g6 {[%emt 0:04:17]} 26.
Rd4 {[%emt 0:05:41]} Red7 {[%emt 0:03:15]} 27. Nd3 {[%emt 0:02:24]} f5 {
[%emt 0:02:22]} 28. b4 {[%emt 0:02:27]} Kg7 {[%emt 0:03:02]} 29. h4 {[%emt 0:
02:30]} Kf6 {[%emt 0:00:38]} 30. Nc5 {[%emt 0:02:42]} Nxc5 {[%emt 0:00:43]} 31.
Rxc5 {[%emt 0:00:01]} ({Don't play} 31. bxc5 Rc7 $11) 31... Ke5 {[%emt 0:00:32]
} 32. Kf1 {[%emt 0:01:27] White is more active.} Rd6 {[%emt 0:02:05]} 33. Ke2 {
[%emt 0:00:57]} Bc6 {[%emt 0:00:01]} 34. Rd2 {[%emt 0:00:00]} R8d7 {[%emt 0:01:
19]} 35. Rdc2 {[%emt 0:00:57]} Bb7 {[%emt 0:00:03]} 36. Kd3 {[%emt 0:00:09]}
Rb6 {[%emt 0:00:50]} (36... Re7 $16 {might work better.}) 37. Rc7 $18 {[%emt 0:
01:21]} Rbd6 {[%emt 0:00:02]} 38. R2c5 {[%emt 0:00:00]} Ba8 {[%emt 0:01:26]} (
38... h5 $142 39. Bf3 Ba8) 39. Rc8 {[%emt 0:00:00]} (39. h5 $18) 39... Bb7 $16
{[%emt 0:00:02]} 40. Rb8 {[%emt 0:00:28]} Re7 {[%emt 0:00:54]} 41. Bf3 {
[%emt 0:32:33]} Rdd7 {[%emt 0:30:49]} 42. g4 {[%emt 0:00:00][%cal Yg3g4,Yg4g5]}
Rc7 {[%emt 0:00:30]} (42... f4 $1 $14) 43. Re8 {[%emt 0:02:01]} Kd6 {[%emt 0:
00:00]} ({Black should play} 43... Rxe8 $14 44. Rxc7 Bc8) 44. Rd8+ {[%emt 0:00:
00]} Red7 $2 {[%emt 0:00:00] [#] Black cannot hold the game after this.} (44...
Rcd7 $16 45. Rg8 Rg7) 45. Rxc7 $1 $18 {[%emt 0:00:00] White is clearly winning.
} Kxc7 {[%emt 0:00:00]} 46. Rxd7+ {[%emt 0:00:00]} Kxd7 {[%emt 0:00:00]
Endgame KB-KB} 47. g5 {[%emt 0:00:00]} Kd6 {[%emt 0:00:00]} 48. Kd4 {[%emt 0:
00:00]} Ba8 {[%emt 0:00:00]} 49. h5 {[%emt 0:00:00][%cal Yh4h5,Yh5h6]} Bb7 {
[%emt 0:00:00]} 50. h6 {[%emt 0:00:00]} Ke6 {[%emt 0:00:00]} 51. Bg2 {[%emt 0:
00:00]} Kd6 {[%emt 0:00:00]} 52. f4 {[%emt 0:00:00]} Bc6 {[%emt 0:00:00]} 53.
Bf3 {[%emt 0:00:00] Weighted Error Value: White=0.13 (very precise) /Black=0.
20 (precise)} 1-0